[Event "*** Titled Tuesday Blitz"]
[Site "Chess.com"]
[Date "2020.11.10"]
[Round "9"]
[White "exoticprincess"]
[Black "Zkid"]
[Result "0-1"]
[WhiteElo "2877"]
[BlackElo "2799"]
[TimeControl "180+1"]
[EndTime "11:52:56 PST"]
[Termination "Zkid won on time"]

1. b3 {[%clk 0:03:00.9]} 1... e5 {[%clk 0:02:59.7]} 2. Bb2 {[%clk 0:03:01.8]}
2... Nc6 {[%clk 0:03:00.1]} 3. Nf3 {[%clk 0:03:01.6]} 3... d6 {[%clk 0:02:58.3]}
4. d4 {[%clk 0:03:00.9]} 4... exd4 {[%clk 0:02:47.4]} 5. Nxd4 {[%clk 0:03:01.8]}
5... Bd7 {[%clk 0:02:46.8]} 6. e3 {[%clk 0:03:00.1]} 6... Nf6 {[%clk 0:02:45.4]}
7. Nc3 {[%clk 0:03:00.2]} 7... g6 {[%clk 0:02:42.4]} 8. Qd2 {[%clk 0:02:45.6]}
8... Bg7 {[%clk 0:02:36.8]} 9. O-O-O {[%clk 0:02:45.4]} 9... Qe7 {[%clk
0:02:33.5]} 10. Ndb5 {[%clk 0:02:40.8]} 10... Be6 {[%clk 0:02:23.6]} 11. Kb1
{[%clk 0:02:31.6]} 11... O-O-O {[%clk 0:02:15.3]} 12. Be2 {[%clk 0:02:30.1]}
12... Rhg8 {[%clk 0:02:11.2]} 13. Bf3 {[%clk 0:02:27.4]} 13... d5 {[%clk
0:02:08]} 14. Ba3 {[%clk 0:02:23]} 14... Qd7 {[%clk 0:02:02.5]} 15. Bb2 {[%clk
0:01:56.1]} 15... Kb8 {[%clk 0:01:51.6]} 16. h3 {[%clk 0:01:52.6]} 16... a6
{[%clk 0:01:48]} 17. Nd4 {[%clk 0:01:52.1]} 17... Nxd4 {[%clk 0:01:47.3]} 18.
exd4 {[%clk 0:01:52.6]} 18... Bf5 {[%clk 0:01:39.6]} 19. g4 {[%clk 0:01:51.5]}
19... Ne4 {[%clk 0:01:34.1]} 20. Qf4 {[%clk 0:01:43.4]} 20... Nxc3+ {[%clk
0:01:25.6]} 21. Bxc3 {[%clk 0:01:44.3]} 21... Qc6 {[%clk 0:01:17.7]} 22. Kb2
{[%clk 0:01:36.6]} 22... Be4 {[%clk 0:01:09.7]} 23. Rhe1 {[%clk 0:01:26.5]}
23... f5 {[%clk 0:01:05.2]} 24. Be2 {[%clk 0:01:22.7]} 24... g5 {[%clk
0:01:00.7]} 25. Qd2 {[%clk 0:01:05.7]} 25... f4 {[%clk 0:00:51.8]} 26. f3 {[%clk
0:01:05.6]} 26... Bg6 {[%clk 0:00:51.3]} 27. h4 {[%clk 0:01:04.2]} 27... gxh4
{[%clk 0:00:47.5]} 28. Qxf4 {[%clk 0:01:04.3]} 28... Rde8 {[%clk 0:00:45.8]} 29.
Bd3 {[%clk 0:00:53.1]} 29... Rxe1 {[%clk 0:00:41.8]} 30. Bxe1 {[%clk 0:00:54]}
30... Rf8 {[%clk 0:00:42]} 31. Qe3 {[%clk 0:00:51]} 31... Qf6 {[%clk 0:00:31.9]}
32. Be2 {[%clk 0:00:42.8]} 32... Re8 {[%clk 0:00:29.3]} 33. Qf2 {[%clk 0:00:43]}
33... Qf4 {[%clk 0:00:20.8]} 34. c3 {[%clk 0:00:39.1]} 34... h3 {[%clk
0:00:19.8]} 35. Bd2 {[%clk 0:00:39.3]} 35... Qd6 {[%clk 0:00:19.3]} 36. Rh1
{[%clk 0:00:37.9]} 36... Bf8 {[%clk 0:00:19.6]} 37. Rxh3 {[%clk 0:00:32.8]}
37... Qa3+ {[%clk 0:00:18.4]} 38. Ka1 {[%clk 0:00:33]} 38... c5 {[%clk
0:00:13.7]} 39. Rh1 {[%clk 0:00:31.4]} 39... cxd4 {[%clk 0:00:13.9]} 40. cxd4
{[%clk 0:00:31.1]} 40... Bb4 {[%clk 0:00:14]} 41. Bxb4 {[%clk 0:00:25.2]} 41...
Qxb4 {[%clk 0:00:14.9]} 42. Bd1 {[%clk 0:00:14.5]} 42... Rc8 {[%clk 0:00:10.7]}
43. Qb2 {[%clk 0:00:14.2]} 43... Rc3 {[%clk 0:00:10.3]} 44. a3 {[%clk
0:00:13.8]} 44... Qxd4 {[%clk 0:00:10.4]} 45. f4 {[%clk 0:00:10.5]} 45... Rc1+
{[%clk 0:00:09.6]} 46. Ka2 {[%clk 0:00:09.4]} 46... Bb1+ {[%clk 0:00:10.2]} 47.
Ka1 {[%clk 0:00:08.9]} 47... Be4+ {[%clk 0:00:09.3]} 48. Ka2 {[%clk 0:00:08.2]}
48... Rxd1 {[%clk 0:00:08.8]} 49. Rxd1 {[%clk 0:00:06.1]} 49... Qxd1 {[%clk
0:00:06.7]} 50. f5 {[%clk 0:00:06.3]} 50... Qxg4 {[%clk 0:00:04.2]} 51. Qe5+
{[%clk 0:00:06.2]} 51... Ka7 {[%clk 0:00:03.6]} 52. Qd4+ {[%clk 0:00:06.2]}
52... b6 {[%clk 0:00:03.1]} 53. a4 {[%clk 0:00:03.4]} 53... Bb1+ {[%clk
0:00:01.5]} 0-1

[Event "*** Titled Tuesday Blitz"]
[Site "Chess.com"]
[Date "2020.11.10"]
[Round "9"]
[White "Algeriano22"]
[Black "TimofeevAr"]
[Result "0-1"]
[WhiteElo "2699"]
[BlackElo "2859"]
[TimeControl "180+1"]
[EndTime "11:52:56 PST"]
[Termination "TimofeevAr won on time"]

1. e4 {[%clk 0:03:00.9]} 1... d5 {[%clk 0:02:59.1]} 2. exd5 {[%clk 0:02:59.4]}
2... Nf6 {[%clk 0:02:59.3]} 3. d4 {[%clk 0:02:59.1]} 3... Nxd5 {[%clk
0:02:58.7]} 4. Nf3 {[%clk 0:02:58.9]} 4... g6 {[%clk 0:02:58.2]} 5. Be2 {[%clk
0:02:58]} 5... Bg7 {[%clk 0:02:57.9]} 6. O-O {[%clk 0:02:58.6]} 6... O-O {[%clk
0:02:58]} 7. c4 {[%clk 0:02:58.6]} 7... Nf6 {[%clk 0:02:57.9]} 8. Nc3 {[%clk
0:02:56.7]} 8... c6 {[%clk 0:02:57.9]} 9. h3 {[%clk 0:02:54.5]} 9... Nbd7 {[%clk
0:02:57]} 10. Bf4 {[%clk 0:02:53.7]} 10... a5 {[%clk 0:02:54.7]} 11. Qd2 {[%clk
0:02:49]} 11... a4 {[%clk 0:02:54.3]} 12. Rfe1 {[%clk 0:02:47.3]} 12... Qa5
{[%clk 0:02:49.9]} 13. Bf1 {[%clk 0:02:45.8]} 13... Re8 {[%clk 0:02:49.6]} 14.
Rad1 {[%clk 0:02:41.7]} 14... Nf8 {[%clk 0:02:44.2]} 15. a3 {[%clk 0:02:20.6]}
15... Bf5 {[%clk 0:02:38.4]} 16. Re5 {[%clk 0:01:44.9]} 16... Qb6 {[%clk
0:02:35.2]} 17. c5 {[%clk 0:01:40.9]} 17... Qd8 {[%clk 0:02:33.6]} 18. Ree1
{[%clk 0:01:36.3]} 18... Ne6 {[%clk 0:02:26.4]} 19. Bh2 {[%clk 0:01:23.4]} 19...
Nc7 {[%clk 0:02:25.3]} 20. Ne5 {[%clk 0:01:20.7]} 20... Ncd5 {[%clk 0:02:22.8]}
21. Nc4 {[%clk 0:01:20.5]} 21... b5 {[%clk 0:02:09.6]} 22. Ne5 {[%clk
0:01:17.1]} 22... Qc8 {[%clk 0:02:08.5]} 23. Be2 {[%clk 0:00:57.2]} 23... Be6
{[%clk 0:02:04.9]} 24. Bf3 {[%clk 0:00:56]} 24... Nxc3 {[%clk 0:02:04.4]} 25.
bxc3 {[%clk 0:00:55.9]} 25... Bd5 {[%clk 0:02:04.7]} 26. Qf4 {[%clk 0:00:45.9]}
26... Rf8 {[%clk 0:01:57]} 27. Be2 {[%clk 0:00:23.5]} 27... e6 {[%clk
0:01:49.7]} 28. Bd3 {[%clk 0:00:22.8]} 28... Nd7 {[%clk 0:01:47.1]} 29. Ng4
{[%clk 0:00:21.7]} 29... Qe8 {[%clk 0:01:18.5]} 30. Bg3 {[%clk 0:00:18.1]} 30...
Qe7 {[%clk 0:01:16.2]} 31. Ne3 {[%clk 0:00:17.5]} 31... Bb3 {[%clk 0:01:11.9]}
32. Rc1 {[%clk 0:00:15.4]} 32... h6 {[%clk 0:01:10]} 33. Qf3 {[%clk 0:00:15.5]}
33... Rfc8 {[%clk 0:01:07]} 34. Be4 {[%clk 0:00:12.7]} 34... Ra6 {[%clk
0:01:04.8]} 35. Bd6 {[%clk 0:00:12]} 35... Qd8 {[%clk 0:01:02.6]} 36. Bb1 {[%clk
0:00:11.3]} 36... Nf6 {[%clk 0:01:01.9]} 37. Be5 {[%clk 0:00:10.3]} 37... Nd5
{[%clk 0:00:57.9]} 38. Ng4 {[%clk 0:00:10.2]} 38... h5 {[%clk 0:00:52.8]} 39.
Nh2 {[%clk 0:00:10.5]} 39... Bxe5 {[%clk 0:00:51]} 40. Rxe5 {[%clk 0:00:11.4]}
40... Qf6 {[%clk 0:00:50.7]} 41. Qe2 {[%clk 0:00:09.6]} 41... Qf4 {[%clk
0:00:43.9]} 42. Re1 {[%clk 0:00:08.6]} 42... Nxc3 {[%clk 0:00:43.3]} 43. Qd3
{[%clk 0:00:07.1]} 43... Nxb1 {[%clk 0:00:43]} 44. Qxb1 {[%clk 0:00:07.5]} 44...
Bd5 {[%clk 0:00:41.6]} 45. Nf1 {[%clk 0:00:04.2]} 45... Qxd4 {[%clk 0:00:39.8]}
46. Ng3 {[%clk 0:00:04.6]} 46... h4 {[%clk 0:00:37.8]} 47. Nf1 {[%clk
0:00:03.7]} 47... Raa8 {[%clk 0:00:35.9]} 48. Qc1 {[%clk 0:00:04]} 48... Kg7
{[%clk 0:00:33.8]} 49. Nh2 {[%clk 0:00:01.3]} 49... Rh8 {[%clk 0:00:29.3]} 50.
Ng4 {[%clk 0:00:01.5]} 50... Raf8 {[%clk 0:00:27.6]} 51. R5e3 {[%clk 0:00:01.7]}
51... Rh5 {[%clk 0:00:14.3]} 52. Rd1 {[%clk 0:00:02.1]} 52... Qf4 {[%clk
0:00:14.5]} 53. Qc3+ {[%clk 0:00:02.3]} 53... e5 {[%clk 0:00:15]} 0-1

[Event "*** Titled Tuesday Blitz"]
[Site "Chess.com"]
[Date "2020.11.10"]
[Round "9"]
[White "nicoderboss24"]
[Black "Vsevolod_Ovchinnikov"]
[Result "0-1"]
[WhiteElo "2258"]
[BlackElo "2531"]
[TimeControl "180+1"]
[EndTime "11:52:56 PST"]
[Termination "Vsevolod_Ovchinnikov won by resignation"]

1. e4 {[%clk 0:03:00.9]} 1... g6 {[%clk 0:02:59.3]} 2. d4 {[%clk 0:03:00.8]}
2... Bg7 {[%clk 0:02:59.9]} 3. c3 {[%clk 0:03:01.3]} 3... d6 {[%clk 0:02:59.3]}
4. Bd3 {[%clk 0:03:01.8]} 4... Nf6 {[%clk 0:02:59.1]} 5. Ne2 {[%clk 0:03:02.4]}
5... O-O {[%clk 0:02:57.9]} 6. O-O {[%clk 0:03:02.7]} 6... Nbd7 {[%clk
0:02:56.1]} 7. f4 {[%clk 0:03:03.1]} 7... e5 {[%clk 0:02:53.9]} 8. fxe5 {[%clk
0:03:02.4]} 8... dxe5 {[%clk 0:02:53.6]} 9. d5 {[%clk 0:03:00.8]} 9... Nc5
{[%clk 0:02:42.9]} 10. Bg5 {[%clk 0:02:56.8]} 10... h6 {[%clk 0:02:42.6]} 11.
Bxf6 {[%clk 0:02:56.8]} 11... Bxf6 {[%clk 0:02:43.5]} 12. Bc2 {[%clk 0:02:55.8]}
12... b6 {[%clk 0:02:38.1]} 13. b4 {[%clk 0:02:54.8]} 13... Nb7 {[%clk
0:02:37.9]} 14. Nd2 {[%clk 0:02:50.5]} 14... a5 {[%clk 0:02:34.7]} 15. a3 {[%clk
0:02:49.8]} 15... Nd6 {[%clk 0:02:33]} 16. Bd3 {[%clk 0:02:47.8]} 16... Bg5
{[%clk 0:02:29.5]} 17. Nc4 {[%clk 0:02:45.8]} 17... Qe7 {[%clk 0:02:13.1]} 18.
Ng3 {[%clk 0:02:39.6]} 18... Kg7 {[%clk 0:02:05.1]} 19. Nxd6 {[%clk 0:02:38.3]}
19... cxd6 {[%clk 0:02:04.7]} 20. c4 {[%clk 0:02:19.2]} 20... Be3+ {[%clk
0:01:30]} 21. Kh1 {[%clk 0:02:17.1]} 21... Bd4 {[%clk 0:01:30.3]} 22. Rb1 {[%clk
0:02:16.9]} 22... axb4 {[%clk 0:01:30]} 23. axb4 {[%clk 0:02:17.8]} 23... Ra3
{[%clk 0:01:26.4]} 24. Rb3 {[%clk 0:02:14.3]} 24... Qa7 {[%clk 0:01:23.8]} 25.
Ne2 {[%clk 0:02:10.2]} 25... Be3 {[%clk 0:01:14]} 26. Qb1 {[%clk 0:02:00]} 26...
Bd7 {[%clk 0:01:07.6]} 27. Qc2 {[%clk 0:01:32.8]} 27... Ra2 {[%clk 0:01:05.2]}
28. Rb2 {[%clk 0:01:30.9]} 28... Rxb2 {[%clk 0:01:05.4]} 29. Qxb2 {[%clk
0:01:31.8]} 29... Ra8 {[%clk 0:01:05.2]} 30. h3 {[%clk 0:01:26.9]} 30... Qa3
{[%clk 0:01:00.8]} 31. Qxa3 {[%clk 0:01:22.6]} 31... Rxa3 {[%clk 0:01:01.7]} 32.
Rd1 {[%clk 0:01:22.2]} 32... Rb3 {[%clk 0:01:00.3]} 33. b5 {[%clk 0:01:22.5]}
33... Ra3 {[%clk 0:00:57.9]} 34. Kh2 {[%clk 0:01:21.2]} 34... f5 {[%clk
0:00:54.8]} 35. g3 {[%clk 0:01:09.2]} 35... fxe4 {[%clk 0:00:42.7]} 36. Bxe4
{[%clk 0:01:10.1]} 36... Ra2 {[%clk 0:00:42.9]} 37. Bf3 {[%clk 0:00:58.4]} 37...
e4 {[%clk 0:00:42.7]} 38. Kg2 {[%clk 0:00:38.8]} 38... exf3+ {[%clk 0:00:42.5]}
39. Kxf3 {[%clk 0:00:39.7]} 39... Bc5 {[%clk 0:00:42.8]} 40. g4 {[%clk 0:00:34]}
40... Ra3+ {[%clk 0:00:40.9]} 41. Kg2 {[%clk 0:00:34]} 41... Re3 {[%clk
0:00:38.8]} 42. Ng3 {[%clk 0:00:33.6]} 42... Rc3 {[%clk 0:00:32.9]} 43. Re1
{[%clk 0:00:27.9]} 43... Kf7 {[%clk 0:00:21.9]} 44. Re4 {[%clk 0:00:27]} 44...
g5 {[%clk 0:00:16]} 45. Nh5 {[%clk 0:00:19.4]} 45... Re3 {[%clk 0:00:15.7]} 46.
Rxe3 {[%clk 0:00:18.1]} 46... Bxe3 {[%clk 0:00:16.6]} 47. Kf3 {[%clk 0:00:17.5]}
47... Bd4 {[%clk 0:00:17.1]} 48. Ng3 {[%clk 0:00:14.3]} 48... Be5 {[%clk
0:00:15.7]} 49. Ne2 {[%clk 0:00:12.6]} 49... Ke7 {[%clk 0:00:15.8]} 50. Nc1
{[%clk 0:00:09.9]} 50... Be8 {[%clk 0:00:16.1]} 51. Nd3 {[%clk 0:00:10.1]} 51...
Bg6 {[%clk 0:00:15.4]} 52. Nb4 {[%clk 0:00:09.1]} 52... Kf6 {[%clk 0:00:14]} 53.
Nc6 {[%clk 0:00:09.3]} 53... Bd3 {[%clk 0:00:14]} 54. Na7 {[%clk 0:00:05.8]}
54... Bxc4 {[%clk 0:00:14.1]} 55. Nc8 {[%clk 0:00:06.7]} 55... Bxd5+ {[%clk
0:00:14]} 56. Ke3 {[%clk 0:00:06.6]} 56... Bc4 {[%clk 0:00:14.4]} 57. Nxb6
{[%clk 0:00:07.5]} 57... Bxb5 {[%clk 0:00:14.8]} 58. Nd5+ {[%clk 0:00:07.4]}
58... Kg6 {[%clk 0:00:15]} 59. Ke4 {[%clk 0:00:07.8]} 59... Bc6 {[%clk
0:00:14.3]} 0-1

[Event "*** Titled Tuesday Blitz"]
[Site "Chess.com"]
[Date "2020.11.10"]
[Round "9"]
[White "Ajedrez_con_German"]
[Black "kasparicy"]
[Result "1/2-1/2"]
[WhiteElo "2532"]
[BlackElo "2400"]
[TimeControl "180+1"]
[EndTime "11:52:56 PST"]
[Termination "Game drawn by repetition"]

1. Nf3 {[%clk 0:03:00.6]} 1... Nf6 {[%clk 0:02:56.1]} 2. b3 {[%clk 0:02:56.3]}
2... g6 {[%clk 0:02:56.3]} 3. Bb2 {[%clk 0:02:57.2]} 3... Bg7 {[%clk 0:02:56.9]}
4. e3 {[%clk 0:02:58.1]} 4... d5 {[%clk 0:02:57]} 5. c4 {[%clk 0:02:58.1]} 5...
c6 {[%clk 0:02:54.7]} 6. cxd5 {[%clk 0:02:58.3]} 6... cxd5 {[%clk 0:02:55.6]} 7.
Bb5+ {[%clk 0:02:58.5]} 7... Nc6 {[%clk 0:02:54.3]} 8. Ne5 {[%clk 0:02:56.5]}
8... O-O {[%clk 0:02:43.2]} 9. O-O {[%clk 0:02:31.3]} 9... Nxe5 {[%clk
0:02:34.8]} 10. Bxe5 {[%clk 0:02:30.9]} 10... a6 {[%clk 0:02:25.9]} 11. Be2
{[%clk 0:02:29.4]} 11... b5 {[%clk 0:02:23.6]} 12. Bb2 {[%clk 0:02:25.8]} 12...
Bb7 {[%clk 0:02:20.6]} 13. d4 {[%clk 0:02:24.5]} 13... Rc8 {[%clk 0:02:17.6]}
14. Nc3 {[%clk 0:02:23.7]} 14... Qd7 {[%clk 0:02:10.6]} 15. Rc1 {[%clk
0:02:22.8]} 15... Rc7 {[%clk 0:02:06]} 16. Ba3 {[%clk 0:02:03.4]} 16... Rfc8
{[%clk 0:02:00.6]} 17. Bc5 {[%clk 0:02:02.6]} 17... e5 {[%clk 0:01:42]} 18. b4
{[%clk 0:01:51.6]} 18... Ne4 {[%clk 0:01:24.1]} 19. Nxe4 {[%clk 0:01:40.8]}
19... dxe4 {[%clk 0:01:22.5]} 20. dxe5 {[%clk 0:01:32.9]} 20... Bxe5 {[%clk
0:01:20.6]} 21. Qxd7 {[%clk 0:01:17.5]} 21... Rxd7 {[%clk 0:01:19.5]} 22. Rfd1
{[%clk 0:01:16.6]} 22... Rcd8 {[%clk 0:01:16.1]} 23. Rxd7 {[%clk 0:01:15.7]}
23... Rxd7 {[%clk 0:01:17]} 24. Rd1 {[%clk 0:01:15.9]} 24... Rxd1+ {[%clk
0:01:14.9]} 25. Bxd1 {[%clk 0:01:16.1]} 25... Bd5 {[%clk 0:01:11.2]} 26. a4
{[%clk 0:01:11.1]} 26... Bc4 {[%clk 0:01:08.5]} 27. axb5 {[%clk 0:00:59.8]}
27... axb5 {[%clk 0:01:09.4]} 28. Bc2 {[%clk 0:00:56.3]} 28... f5 {[%clk
0:01:05.3]} 29. h3 {[%clk 0:00:49.8]} 29... Kf7 {[%clk 0:01:01.5]} 30. f3 {[%clk
0:00:50]} 30... exf3 {[%clk 0:00:58.1]} 31. gxf3 {[%clk 0:00:50.9]} 31... Ke6
{[%clk 0:00:58.2]} 32. Kf2 {[%clk 0:00:47.8]} 32... Bd6 {[%clk 0:00:58]} 33.
Bxd6 {[%clk 0:00:43.4]} 33... Kxd6 {[%clk 0:00:58.9]} 34. h4 {[%clk 0:00:34.8]}
34... Ke5 {[%clk 0:00:54.9]} 35. Ke1 {[%clk 0:00:24.2]} 35... h6 {[%clk
0:00:47]} 36. f4+ {[%clk 0:00:21.8]} 36... Kf6 {[%clk 0:00:46.7]} 37. Kd2 {[%clk
0:00:20.2]} 37... g5 {[%clk 0:00:40.9]} 38. fxg5+ {[%clk 0:00:16.6]} 38... hxg5
{[%clk 0:00:41.8]} 39. hxg5+ {[%clk 0:00:13.6]} 39... Kxg5 {[%clk 0:00:41.8]}
40. Kc3 {[%clk 0:00:06.3]} 40... f4 {[%clk 0:00:33.9]} 41. exf4+ {[%clk
0:00:05.1]} 41... Kxf4 {[%clk 0:00:34.8]} 42. Kd4 {[%clk 0:00:06]} 42... Bf1
{[%clk 0:00:32.7]} 43. Kc5 {[%clk 0:00:04.4]} 43... Ke5 {[%clk 0:00:31.1]} 44.
Bd1 {[%clk 0:00:03.5]} 44... Ke6 {[%clk 0:00:29]} 45. Bg4+ {[%clk 0:00:03.6]}
45... Ke7 {[%clk 0:00:29.1]} 46. Bf3 {[%clk 0:00:03.8]} 46... Kd8 {[%clk
0:00:29.2]} 47. Bc6 {[%clk 0:00:04]} 47... Kc7 {[%clk 0:00:29.5]} 48. Bxb5
{[%clk 0:00:04]} 48... Bxb5 {[%clk 0:00:29.4]} 49. Kxb5 {[%clk 0:00:04.9]} 49...
Kb7 {[%clk 0:00:29.9]} 50. Ka5 {[%clk 0:00:05.1]} 50... Ka7 {[%clk 0:00:30.3]}
51. Kb5 {[%clk 0:00:05.5]} 51... Kb7 {[%clk 0:00:30.6]} 52. Kc5 {[%clk 0:00:05]}
52... Kc7 {[%clk 0:00:30.8]} 53. Kc4 {[%clk 0:00:04.8]} 53... Kc6 {[%clk
0:00:30.7]} 54. Kc3 {[%clk 0:00:05.1]} 54... Kb5 {[%clk 0:00:31.3]} 55. Kb3
{[%clk 0:00:06]} 55... Kb6 {[%clk 0:00:31.7]} 56. Ka4 {[%clk 0:00:06.9]} 56...
Ka6 {[%clk 0:00:31.7]} 57. b5+ {[%clk 0:00:07.5]} 57... Kb6 {[%clk 0:00:31.9]}
58. Kb4 {[%clk 0:00:08.4]} 58... Kb7 {[%clk 0:00:32.7]} 59. Kc5 {[%clk
0:00:09.2]} 59... Kc7 {[%clk 0:00:33]} 60. b6+ {[%clk 0:00:09.7]} 60... Kb7
{[%clk 0:00:33.4]} 61. Kb5 {[%clk 0:00:10.6]} 61... Kb8 {[%clk 0:00:33.5]} 62.
Ka5 {[%clk 0:00:11]} 62... Kb7 {[%clk 0:00:34.4]} 63. Kb5 {[%clk 0:00:11.3]}
63... Kb8 {[%clk 0:00:35.3]} 64. Kc6 {[%clk 0:00:12.2]} 64... Kc8 {[%clk
0:00:35.3]} 65. Kc5 {[%clk 0:00:13.1]} 65... Kb7 {[%clk 0:00:35.6]} 66. Kb5
{[%clk 0:00:14]} 1/2-1/2

[Event "*** Titled Tuesday Blitz"]
[Site "Chess.com"]
[Date "2020.11.10"]
[Round "9"]
[White "Lion-Al-Messi"]
[Black "Flopezin"]
[Result "1-0"]
[WhiteElo "2548"]
[BlackElo "2399"]
[TimeControl "180+1"]
[EndTime "11:52:57 PST"]
[Termination "Lion-Al-Messi won on time"]

1. e4 {[%clk 0:03:00.9]} 1... e5 {[%clk 0:02:59.5]} 2. Nf3 {[%clk 0:03:01]} 2...
Nc6 {[%clk 0:03:00.1]} 3. Bb5 {[%clk 0:03:01.6]} 3... a6 {[%clk 0:03:00.5]} 4.
Ba4 {[%clk 0:03:02.3]} 4... Nf6 {[%clk 0:03:00.8]} 5. O-O {[%clk 0:03:02.6]}
5... Bc5 {[%clk 0:03:01.4]} 6. c3 {[%clk 0:03:02.2]} 6... b5 {[%clk 0:03:01.8]}
7. Bb3 {[%clk 0:03:01.8]} 7... d6 {[%clk 0:03:02.3]} 8. a4 {[%clk 0:03:01.6]}
8... Bg4 {[%clk 0:03:01.3]} 9. axb5 {[%clk 0:03:00.9]} 9... axb5 {[%clk
0:03:02.2]} 10. Rxa8 {[%clk 0:03:01]} 10... Qxa8 {[%clk 0:03:03.1]} 11. h3
{[%clk 0:02:58.5]} 11... Bd7 {[%clk 0:02:51.4]} 12. d4 {[%clk 0:02:57.3]} 12...
Bb6 {[%clk 0:02:51.1]} 13. Na3 {[%clk 0:02:53.7]} 13... h6 {[%clk 0:02:44.8]}
14. Nxb5 {[%clk 0:02:51.6]} 14... O-O {[%clk 0:02:18.3]} 15. dxe5 {[%clk
0:02:35.7]} 15... Nxe5 {[%clk 0:02:16.3]} 16. Nxe5 {[%clk 0:02:32.3]} 16... Bxb5
{[%clk 0:02:14.7]} 17. c4 {[%clk 0:02:29]} 17... Qxe4 {[%clk 0:01:51]} 18. Re1
{[%clk 0:01:56.8]} 18... Qf5 {[%clk 0:01:43.6]} 19. Nf3 {[%clk 0:01:56.9]} 19...
Bc6 {[%clk 0:01:37.9]} 20. Bc2 {[%clk 0:01:55.4]} 20... Qh5 {[%clk 0:01:14.8]}
21. Nd4 {[%clk 0:01:51.9]} 21... Qxd1 {[%clk 0:01:00.6]} 22. Rxd1 {[%clk
0:01:52.8]} 22... Bd7 {[%clk 0:00:58.1]} 23. b4 {[%clk 0:01:50.1]} 23... Re8
{[%clk 0:00:56.4]} 24. Be3 {[%clk 0:01:50.5]} 24... Ne4 {[%clk 0:00:52.7]} 25.
g4 {[%clk 0:01:24.3]} 25... Nc3 {[%clk 0:00:51.9]} 26. Rd3 {[%clk 0:01:13.3]}
26... Bxd4 {[%clk 0:00:47.4]} 27. Bxd4 {[%clk 0:01:14.2]} 27... Ne2+ {[%clk
0:00:45]} 28. Kf1 {[%clk 0:01:14.5]} 28... Nxd4 {[%clk 0:00:45.9]} 29. Rxd4
{[%clk 0:01:14.5]} 29... Rb8 {[%clk 0:00:43.8]} 30. c5 {[%clk 0:01:14.1]} 30...
Bb5+ {[%clk 0:00:35.3]} 31. Kg2 {[%clk 0:01:14]} 31... dxc5 {[%clk 0:00:36.2]}
32. bxc5 {[%clk 0:01:13.9]} 32... Re8 {[%clk 0:00:30.5]} 33. Kg3 {[%clk
0:01:12.3]} 33... g6 {[%clk 0:00:27.3]} 34. h4 {[%clk 0:01:11.6]} 34... Re5
{[%clk 0:00:25.6]} 35. Bb3 {[%clk 0:01:00]} 35... Rxc5 {[%clk 0:00:24.6]} 36.
Rf4 {[%clk 0:01:00]} 36... Rc3+ {[%clk 0:00:22.7]} 37. Rf3 {[%clk 0:00:55.8]}
37... Rxf3+ {[%clk 0:00:23.2]} 38. Kxf3 {[%clk 0:00:56.7]} 38... Kf8 {[%clk
0:00:22.2]} 39. Ke3 {[%clk 0:00:56.6]} 39... Ke7 {[%clk 0:00:20.6]} 40. Kd4
{[%clk 0:00:55.8]} 40... Bd7 {[%clk 0:00:20.8]} 41. g5 {[%clk 0:00:52.1]} 41...
h5 {[%clk 0:00:21]} 42. Kc5 {[%clk 0:00:48.1]} 42... Be6 {[%clk 0:00:20.8]} 43.
Bc2 {[%clk 0:00:44.9]} 43... Bd7 {[%clk 0:00:19.7]} 44. Bb3 {[%clk 0:00:42.4]}
44... Be6 {[%clk 0:00:19.9]} 45. Bc2 {[%clk 0:00:32]} 45... Bd7 {[%clk
0:00:20.3]} 46. f4 {[%clk 0:00:32.6]} 46... Ke6 {[%clk 0:00:18.6]} 47. Bb3+
{[%clk 0:00:33]} 47... Kf5 {[%clk 0:00:18.8]} 48. Bxf7 {[%clk 0:00:32.7]} 48...
Kxf4 {[%clk 0:00:18.4]} 49. Bxg6 {[%clk 0:00:31.2]} 49... Kg4 {[%clk 0:00:19.3]}
50. Bf7 {[%clk 0:00:31.6]} 50... Kf5 {[%clk 0:00:14.3]} 51. Bxh5 {[%clk
0:00:30.4]} 51... Ba4 {[%clk 0:00:10]} 52. Be2 {[%clk 0:00:19.8]} 52... Bc2
{[%clk 0:00:04.9]} 53. Kd4 {[%clk 0:00:19.8]} 53... Kf4 {[%clk 0:00:05.8]} 54.
Bd3 {[%clk 0:00:17.9]} 54... Bb3 {[%clk 0:00:03.8]} 55. g6 {[%clk 0:00:17.3]}
55... Kg4 {[%clk 0:00:03.5]} 56. g7 {[%clk 0:00:17.7]} 56... Bg8 {[%clk
0:00:02.1]} 57. Bc4 {[%clk 0:00:17.6]} 57... Kxh4 {[%clk 0:00:02.5]} 58. Bxg8
{[%clk 0:00:17.4]} 58... Kg5 {[%clk 0:00:03]} 59. Bc4 {[%clk 0:00:17.1]} 59...
Kg6 {[%clk 0:00:03.9]} 60. g8=Q+ {[%clk 0:00:17.5]} 1-0